Cogmind - Beta 15 @@@ ROGUE MODE // 2025.08.13 @ 07:51:24 Player: shapeshifter Result: Destroyed by Striker with Compact Linear Accelerator Performance ------------- Evolutions (7) 3500 Regions Visited (15) 3000 Robots Destroyed (132) 660 Value Destroyed (6195) 6195 Prototype IDs (39) 780 Alien Tech Used (0) 0 Bonus (4905) 4905 TOTAL SCORE: 19040 Bonus ------- High Alert Combat Kills 117 Follower Combat Kills 1422 Entered DSFs 500 Met Data Miner 300 Built Enhanced Grunts 300 Met R17 at Cetus 500 Met R17 at Research 2000 Friendly Fire -234 Cogmind --------- Core Integrity 0/1300 Matter 247/300 Energy 87/100 System Corruption 4% Temperature Cool (3) Movement Flying (39) Location -3/Testing Parts ------- > --- POWER (2) -------- (None) > --- PROPULSION (6) --- Q-thruster Impulse Thruster Array > --- UTILITY (10) ----- (None) > --- WEAPON (3) ------- Hypervelocity EM Gauss Rifle Plasma Lance > --- INVENTORY (5) ---- Q-thruster Enhanced Force Rifle Enhanced Force Rifle Advanced Variable Charge Gun Advanced Remote Datajack Peak State ------------ > --- POWER ------------ Quantum Reactor Quantum Reactor > --- PROPULSION ------- Centrium Heavy Treads Centrium Heavy Treads Centrium Heavy Treads > --- UTILITY ---------- Advanced Cooling System Large Storage Unit Improved Signal Interpreter Improved Salvage Targeting Computer Advanced Transmission Jammer Centrium Medium Armor Plating Centrium Medium Armor Plating Centrium Medium Armor Plating Graphene Brace Improved Force Field > --- WEAPON ----------- Enhanced Force Rifle Enhanced Force Rifle Railgun > --- INVENTORY -------- Quantum Reactor Centrium Heavy Treads Centrium Heavy Treads Centrium Wheel Advanced Terrain Scanner Centrium Medium Armor Plating Centrium Medium Armor Plating Advanced Shield Generator Enhanced Force Rifle Advanced Variable Charge Gun Advanced Variable Charge Gun Nova Cannon Nova Cannon [Rating: 167] Favorites ----------- Power Quantum Reactor Engine Improved Ion Engine Power Core Micro Nuclear Core Reactor Quantum Reactor Propulsion Centrium Heavy Treads Treads Centrium Heavy Treads Leg Carbon-fiber Leg Wheel Armored Huge Wheel Hover Unit Airjet Flight Unit Impulse Thruster Array Utility Improved Signal Interpreter Device Improved Sensor Array Storage Large Storage Unit Processor Improved Signal Interpreter Hackware Hacking Suite Protection Centrium Medium Armor Plating Weapon Enhanced Force Rifle Energy Gun Enhanced Force Rifle Energy Cannon Nova Cannon Ballistic Gun High-powered Shotgun Launcher Gamma Bomb Array Special Weapon Remote Datajack Slashing Weapon Molecular Scythe Piercing Weapon Plasma Lance Build | -11 -10 -9 -8 -7 -7 -7 -6 -6 -6 -6 -5 -5 -4 -3 -3 ------- Run | Yrd Mat Mat Mat Fac Low Dat Pro Fac Ext Cet Fac DSF Fac Res Tes Slots Evolved 14 | . . 2 2 2 . . . 2 . . 2 . 2 2 . Power 1 | . . . . . . . . . . . . . 1 . . Propulsion 4 | . . 1 1 . . . . 1 . . 1 . . . . Utility 8 | . . 1 1 2 . . . 1 . . 1 . 1 1 . Weapon 1 | . . . . . . . . . . . . . . 1 . Parts Attached 162 | 7 . 14 8 29 1 1 . 19 26 14 3 1 7 28 4 Power 15 | 1 . 2 . 3 . . . . . 1 . . 3 5 . Engine 3 | 1 . 2 . . . . . . . . . . . . . Core 3 | . . . . 1 . . . . . . . . 1 1 . Reactor 9 | . . . . 2 . . . . . 1 . . 2 4 . Propulsion 51 | 2 . 5 5 7 . . . 7 13 5 1 . . 4 2 Treads 20 | 2 . 2 3 3 . . . 1 1 5 1 . . 2 . Leg 20 | . . . . 2 . . . 6 12 . . . . . . Wheel 3 | . . . . 2 . . . . . . . . . . 1 Hover 4 | . . 3 1 . . . . . . . . . . . . Flight 4 | . . . 1 . . . . . . . . . . 2 1 Utility 59 | 2 . 2 3 9 . . . 9 9 6 2 1 4 12 . Device 25 | 1 . . 1 3 . . . 5 3 2 1 1 3 5 . Storage 5 | 1 . . . 1 . . . 2 . . . . 1 . . Processor 8 | . . . . 2 . . . 1 2 . . . . 3 . Hackware 2 | . . . 1 1 . . . . . . . . . . . Protection 19 | . . 2 1 2 . . . 1 4 4 1 . . 4 . Artifact . | . . . . . . . . . . . . . . . . Weapon 37 | 2 . 5 . 10 1 1 . 3 4 2 . . . 7 2 Energy Gun 12 | 1 . 1 . 3 1 . . 1 3 1 . . . . 1 Energy Cannon 3 | . . . . 1 . . . . . . . . . 2 . Ballistic Gun 12 | 1 . 4 . 3 . . . . 1 1 . . . 2 . Ballistic Cannon . | . . . . . . . . . . . . . . . . Launcher 3 | . . . . 1 . . . 1 . . . . . 1 . Special Weapon 2 | . . . . . . 1 . . . . . . . 1 . Impact Weapon . | . . . . . . . . . . . . . . . . Slashing Weapon 3 | . . . . 2 . . . 1 . . . . . . . Piercing Weapon 2 | . . . . . . . . . . . . . . 1 1 Special Melee Weapon . | . . . . . . . . . . . . . . . . Unidentified Prototypes 23 | . . 1 . 7 . . . . . 4 . . . 8 3 Corrupted Parts 3 | . . . . . . . . . . 3 . . . . . System Corruption 22 | . . . . . . . . . . 22 . . . . . Parts Lost 59 | . . 3 1 14 . . 1 8 8 2 . . . 22 . Power 8 | . . . . 2 . . . . 1 . . . . 5 . Propulsion 19 | . . 1 1 5 . . 1 4 3 1 . . . 3 . Utility 20 | . . . . 4 . . . 3 2 1 . . . 10 . Weapon 12 | . . 2 . 3 . . . 1 2 . . . . 4 . Highest Loss Streak 15 | . . 1 1 10 . . 1 7 5 1 . . . 15 . To Critical Strikes 1 | . . . . 1 . . . . . . . . . . . Average Backups 10 | 5 7 7 7 7 10 9 9 11 13 13 10 11 12 12 4 Power . | . 1 . . . 1 1 1 1 . 1 2 2 1 . . Propulsion 1 | 2 3 2 . 1 . . . . 1 1 2 2 2 2 . Utility 2 | . 2 2 4 1 . . . 1 2 3 2 3 3 3 . Weapon 5 | 1 1 2 3 3 8 7 7 7 8 5 3 3 4 5 3 Tool/Special . | . . . . . . . . . . . . . . . . Unused Backups 45 | . 3 7 5 5 . . . 3 5 9 . . 1 4 3 Power 5 | . . 1 2 . . . . . . 2 . . . . . Propulsion 10 | . 2 3 . 1 . . . . 1 1 . . . 1 1 Utility 13 | . . . 3 1 . . . 1 2 3 . . . 3 . Weapon 16 | . 1 3 . 3 . . . 2 2 3 . . 1 . 1 Tool/Special 1 | . . . . . . . . . . . . . . . 1 Average Slot Usage (%) 90 | . 100 96 97 92 92 85 84 92 98 86 80 82 82 83 19 Engine 2 | . 14 11 9 5 . . . . . . . . . . . Reactor 4 | . . . . . 7 7 7 6 5 6 5 5 8 8 . Treads 14 | . 28 29 1 24 7 7 7 8 1 15 16 17 15 13 . Leg 6 | . . . . 1 7 7 . 11 30 7 . . . . . Wheel 1 | . . . . . 7 7 7 5 . . . . . . 2 Device 14 | . 14 11 9 13 15 15 15 18 8 4 8 11 13 22 . Storage 7 | . 14 11 9 7 7 7 7 6 9 13 11 11 8 3 . Processor 7 | . . . . 6 7 7 7 6 17 13 11 11 10 10 . Hackware 5 | . . . 8 7 15 15 15 12 2 . . . . . . Protection 5 | . . 9 9 6 . . . . 6 12 13 11 12 7 . Energy Gun 5 | . 14 4 . . 7 . 7 5 6 13 11 7 10 6 1 Ballistic Gun 5 | . 14 16 18 13 . . . . 2 . . . . 3 . Slashing Weapon 2 | . . . . . 7 7 7 5 2 . . . . . . Peak Build Rating 167 | 7 8 22 31 67 67 67 67 81 84 112 132 131 153 167 60 Average Rating 77 | 5 7 12 29 37 67 60 64 78 79 101 129 128 145 156 45 On Entrance 64 | . 7 8 22 31 67 67 60 64 77 78 112 129 128 151 27 Naked Turns 5 | . . . . . . . . . . . . . . 5 . Heaviest Build 119 | 15 15 23 23 41 42 37 42 59 62 68 75 71 104 119 9 Greatest Support 240 | 40 40 63 60 82 28 28 28 90 115 190 240 240 240 240 31 Greatest Overweight (x) 18 | . . 2 1 1 1 1 1 18 . . . . . . . Average Overweight (x) . | . . . . . 1 1 1 1 . . . . . . . Largest Inventory Capacity 15 | 8 8 8 8 10 10 10 10 15 15 15 15 15 15 15 5 Average Capacity 11 | 7 8 8 8 8 10 10 10 12 15 15 15 15 15 14 5 Most Carried 15 | 8 8 8 8 10 10 10 9 15 15 15 15 14 15 15 5 Average Carried 10 | 5 7 7 7 7 10 9 9 11 13 14 12 13 14 14 4 Final Capacity 15 | 8 8 8 8 10 10 10 10 15 15 15 15 15 15 15 5 Final Carried 15 | 7 8 8 8 10 10 10 9 12 14 15 13 13 15 14 5 Class Distribution -------------------- 34% | Mutant 27% | Hacker-Mutant 24% | Scavenger-Mutant 11% | Scavenger-Tank Dominant Class ---------------- Mutant | -10/Materials Mutant | -9/Materials Mutant | -8/Materials Mutant | -7/Factory Hacker-Mutant | -7/Lower Caves Hacker-Mutant | -7/Data Miner Hacker-Mutant | -6/Proximity Caves Hacker-Mutant | -6/Factory Scavenger-Mutant | -6/Extension Scavenger-Mutant | -6/Cetus Scavenger-Mutant | -5/Factory Scavenger-Mutant | -5/DSF Scavenger-Mutant | -4/Factory Scavenger-Tank | -3/Research Mutant | -3/Testing Resources | -11 -10 -9 -8 -7 -7 -7 -6 -6 -6 -6 -5 -5 -4 -3 -3 ----------- Run | Yrd Mat Mat Mat Fac Low Dat Pro Fac Ext Cet Fac DSF Fac Res Tes Matter Collected 4038 | 300 18 371 215 1148 14 . 43 275 578 214 . 90 100 670 2 Remotely . | . . . . . . . . . . . . . . . . Salvage Created 6533 | 173 101 724 124 1045 . . 75 933 1194 230 . . 290 1644 . Parts 311 | 15 5 36 10 44 . . 1 41 47 16 . . 17 79 . Haulers Intercepted 7 | . 1 1 2 1 . . . 1 . . . . . 1 . Recyclers Shooed 5 | . . 2 . 1 . . . 2 . . . . . . . Parts Field Recycled . | . . . . . . . . . . . . . . . . Retrieved Matter . | . . . . . . . . . . . . . . . . Parts Self-Destructed 1 | . . . . . . . 1 . . . . . . . . Prevented 2 | . . . . . 2 . . . . . . . . . . Kills | -11 -10 -9 -8 -7 -7 -7 -6 -6 -6 -6 -5 -5 -4 -3 -3 ------- Run | Yrd Mat Mat Mat Fac Low Dat Pro Fac Ext Cet Fac DSF Fac Res Tes Combat Hostiles Destroyed 102 | . 1 14 2 28 . . 3 14 11 2 . . 4 23 . Melee 14 | . . . . 1 . . . 6 3 . . . . 4 . Guns 68 | . 1 14 2 19 . . 3 7 8 2 . . 4 8 . Cannons 5 | . . . . . . . . . . . . . . 5 . AOE 13 | . . . . 8 . . . . . . . . . 5 . Classes Destroyed 18 | 2 2 5 . 6 . . . . 1 . . . . 2 . Worker 2 | . . . . 1 . . . . . . . . . 1 . Builder 2 | . . . . 2 . . . . . . . . . . . Tunneler 4 | 4 . . . . . . . . . . . . . . . Hauler 7 | . 1 1 2 1 . . . 1 . . . . . 1 . Recycler 8 | 1 . 2 . 1 . . . 1 3 . . . . . . Operator 1 | . . 1 . . . . . . . . . . . . . Watcher 4 | . . 1 . 2 . . . 1 . . . . . . . Swarmer 17 | . . 3 1 . . . 3 3 . . . . . 7 . Grunt 28 | . 1 7 1 10 . . . 3 4 . . . . 2 . Brawler 2 | . . 1 . . . . . 1 . . . . . . . Protector 1 | . . . . 1 . . . . . . . . . . . Sentry 13 | . . 3 . 3 . . . . 5 . . . . 2 . Specialist 2 | . . . . 2 . . . . . . . . . . . Hunter 12 | . . . . 6 . . . 1 1 . . . 2 2 . Programmer 17 | . . . . 6 . . . 6 . . . . 2 3 . Behemoth 1 | . . . . . . . . . 1 . . . . . . Cetus Guard 2 | . . . . . . . . . . 2 . . . . . Striker 5 | . . . . . . . . . . . . . . 5 . Executioner 2 | . . . . . . . . . . . . . . 2 . Thug 2 | . . . . . . . . . 1 1 . . . . . Best Kill Streak 6 | 3 1 6 3 6 . . 3 3 5 1 . . 1 5 . Combat Bots Only 6 | . 1 4 2 6 . . 3 3 3 1 . . 1 5 . Max Kills in Single Turn 5 | 1 1 1 1 5 . . 1 1 1 1 . . 1 4 . Gunslinging . | . . . . . . . . . . . . . . . . Exploded 5 | . . . . 5 . . . . . . . . . 4 . Melee 1 | . . . . 1 . . . 1 1 . . . . 1 . Uniques/NPCs Destroyed . | . . . . . . . . . . . . . . . . Combat | -11 -10 -9 -8 -7 -7 -7 -6 -6 -6 -6 -5 -5 -4 -3 -3 -------- Run | Yrd Mat Mat Mat Fac Low Dat Pro Fac Ext Cet Fac DSF Fac Res Tes Hostile Shots Fired 1451 | . 2 104 7 405 . . 26 175 241 45 . . 98 333 15 Missed 468 | . . 30 4 158 . . 8 51 84 14 . . 36 75 8 Hits 983 | . 2 74 3 247 . . 18 124 157 31 . . 62 258 7 Melee 74 | . . . . . . . . 1 . . . . . 73 . Projectile 909 | . 2 74 3 247 . . 18 123 157 31 . . 62 185 7 AOE 7 | . . . . . . . . . . . . . 1 6 . Critical Strikes 38 | . . . . 5 . . . 5 4 8 . . 1 14 1 Actively Blocked 15 | . . . . . . . . . . . . . 1 14 . Part Disruptions 2 | . . . . . . . . 2 . . . . . . . Damage Taken 18374 | . 81 832 73 3377 . . 281 1571 2054 790 . . 874 8234 207 Core 2446 | . 34 142 . 397 . . 77 190 164 88 . . 49 1216 89 Absorbed by Shields 1463 | . . . . . . . . 334 258 163 . . 270 438 . Ignored by Resistances 94 | . . . . . . . . 88 6 . . . . . . Regen/Repaired (Parts) 75 | . . . . . . . . . 75 . . . . . . Core Remaining (%) 78 | 100 86 64 100 . . . 32 . . 48 . 100 95 . . Volleys Fired 500 | 10 6 80 20 100 . 2 12 53 58 12 . . 32 114 1 Largest 3 | 2 2 2 2 2 . 1 1 1 2 2 . . 2 3 1 Hottest 264 | 60 60 85 50 105 . 5 24 39 162 162 . . 162 264 40 Shots Fired 795 | 20 12 144 40 167 1 2 12 55 82 24 . . 62 173 1 Gun 750 | 20 12 144 40 158 1 . 12 53 82 24 . . 62 141 1 Cannon 29 | . . . . 2 . . . . . . . . . 27 . Launcher 12 | . . . . 7 . . . 2 . . . . . 3 . Special 4 | . . . . . . 2 . . . . . . . 2 . Kinetic 396 | 10 6 111 40 151 . . . . 21 . . . . 57 . Thermal 344 | . . 13 . 7 1 . 12 53 61 24 . . 62 111 . Explosive 7 | . . . . 7 . . . . . . . . . . . Electromagnetic 44 | 10 6 20 . 2 . . . 2 . . . . . 3 1 Robot Hit Streak 14 | 5 5 9 5 9 . 1 3 14 9 4 . . 5 11 . Robot Miss Streak 8 | 3 3 6 7 8 . 1 3 3 5 4 . . 6 6 1 Penetration Max 1 | . . . . . . . . . . . . . . 1 . Secondary Targets 7 | . . 1 1 1 . . . . 1 2 . . . 1 . Max Gunslinging Chain 1 | . . 1 1 1 . . . . 1 1 . . . 1 . Shots Hit Robots 551 | 11 7 85 24 129 . 1 7 55 59 13 . . 31 129 . Core Hits 270 | 6 3 37 9 92 . . 3 21 27 5 . . 10 57 . Critical Kills 13 | . . . . . . . . . 5 2 . . 1 5 . Critical Parts Destroyed 21 | . . . . 1 . . . . 4 3 . . 4 9 . Critical Strikes 50 | . . 1 . 1 . . 1 6 14 6 . . 5 16 . Burn 7 | . . 1 . . . . 1 3 2 . . . . . . Meltdown 1 | . . . . . . . . . . . . . . 1 . Destroy 36 | . . . . 1 . . . . 10 6 . . 5 14 . Sever 5 | . . . . . . . . 3 2 . . . . . . Impale 1 | . . . . . . . . . . . . . . 1 . Melee Attacks 84 | . . . . 4 . . . 32 20 . . . . 27 1 Impact . | . . . . . . . . . . . . . . . . Slashing 56 | . . . . 4 . . . 32 20 . . . . . . Piercing 28 | . . . . . . . . . . . . . . 27 1 Sneak Attacks 5 | . . . . . . . . 3 2 . . . . . . Combat Hostiles . | . . . . . . . . . . . . . . . . Follow-up Attacks . | . . . . . . . . . . . . . . . . Damage Inflicted 15625 | 188 92 1102 436 4166 . . 168 2015 1927 433 . . 807 4291 . Guns 9845 | 156 92 1049 436 2296 . . 168 991 1139 433 . . 807 2278 . Cannons 979 | . . . . 23 . . . . . . . . . 956 . Explosions 2497 | 32 . 45 . 1843 . . . 154 . . . . . 423 . Melee 2292 | . . . . . . . . 870 788 . . . . 634 . Ramming 12 | . . 8 . 4 . . . . . . . . . . . Kinetic 4746 | 64 68 799 436 2158 . . . . 95 . . . . 1126 . Thermal 6514 | 32 . 132 . 799 . . 168 991 1044 433 . . 807 2108 . Explosive 1182 | . . . . 1182 . . . . . . . . . . . Electromagnetic 879 | 92 24 163 . 23 . . . 154 . . . . . 423 . Impact . | . . . . . . . . . . . . . . . . Slashing 1658 | . . . . . . . . 870 788 . . . . . . Piercing 634 | . . . . . . . . . . . . . . 634 . Highest Corruption 44 | . . . . 9 9 9 9 11 22 44 . . 4 4 4 Average Corruption 9 | . . . . 3 9 9 9 5 16 29 . . 3 2 4 Corruption Purged . | . . . . . . . . . . . . . . . . Corruption Blocked . | . . . . . . . . . . . . . . . . Effects 179 | . . . . 38 7 2 8 33 61 19 . . 6 3 2 Message Errors 39 | . . . . 10 2 . 3 8 13 3 . . . . . Matter Fused 47 | . . . . 9 . 1 1 10 15 6 . . 2 1 2 Heat Flow Errors 23 | . . . . 5 . . 2 3 8 3 . . 1 1 . Energy Discharges 24 | . . . . 3 2 1 1 3 9 2 . . 3 . . Parts Rejected 3 | . . . . 1 . . . . 1 1 . . . . . Parts Fused 2 | . . . . . . . . . 1 1 . . . . . Data Loss (minor) 24 | . . . . 8 1 . . 6 7 2 . . . . . Data Loss (major) 4 | . . . . 1 . . 1 1 . 1 . . . . . Misfires 9 | . . . . 1 1 . . 2 5 . . . . . . Alerts 3 | . . . . . 1 . . . 1 . . . . 1 . Misdirections 1 | . . . . . . . . . 1 . . . . . . Overload Shots 4 | . . . . . . . . . 4 . . . . . . Overflow Damage 285 | . . . . 55 . . . 92 95 . . . . 43 . Projectiles 43 | . . . . . . . . . . . . . . 43 . Explosions 55 | . . . . 55 . . . . . . . . . . . Melee 187 | . . . . . . . . 92 95 . . . . . . Knockbacks . | . . . . . . . . . . . . . . . . Impact . | . . . . . . . . . . . . . . . . Kinetic . | . . . . . . . . . . . . . . . . Secondary . | . . . . . . . . . . . . . . . . Self-Inflicted Damage 54 | . . . . . . . . . . . . . . 54 . Shots 5 | . . . . . . . . . . . . . . 5 . Rammed 2 | . . 1 . 1 . . . . . . . . . . . Targets Rammed 3 | . . 1 . 2 . . . . . . . . . . . Kicked . | . . . . . . . . . . . . . . . . Crushed 1 | . . . . 1 . . . . . . . . . . . Highest Temperature 448 | . 6 248 4 328 . . 240 232 448 388 . . 205 248 . Average Temperature 107 | . 6 57 3 142 . . 116 108 153 145 . . 28 65 . Received Heat Transfer 1842 | . 12 297 18 618 . . . 269 466 85 . . 16 61 . Effects 9 | . . 3 . 1 . . . . 5 . . . . . . Shutdowns 3 | . . . . . . . . . 3 . . . . . . Energy Bleed 1 | . . . . 1 . . . . . . . . . . . Interference 3 | . . 3 . . . . . . . . . . . . . Matter Decay 1 | . . . . . . . . . 1 . . . . . . Damage (minor) 1 | . . . . . . . . . 1 . . . . . . Siege Activations . | . . . . . . . . . . . . . . . . Martial Activations . | . . . . . . . . . . . . . . . . Shielding Activations . | . . . . . . . . . . . . . . . . Robots Disrupted . | . . . . . . . . . . . . . . . . Combat Hostiles . | . . . . . . . . . . . . . . . . Robots Corrupted . | . . . . . . . . . . . . . . . . Combat Hostiles . | . . . . . . . . . . . . . . . . Parts Fried . | . . . . . . . . . . . . . . . . Impact Corruptions . | . . . . . . . . . . . . . . . . Robots Melted 2 | . . . . . . . . 1 . . . . . 1 . Combat Hostiles 2 | . . . . . . . . 1 . . . . . 1 . Parts Melted 22 | . . 1 . . . . 1 6 2 . . . 4 8 . Heat Transferred 10255 | 50 . 346 . 850 . . 450 2150 1969 666 . . 1147 2627 . Parts Sabotaged . | . . . . . . . . . . . . . . . . Parts Stolen . | . . . . . . . . . . . . . . . . Parts Stripped . | . . . . . . . . . . . . . . . . Power Chain Reactions 2 | 1 . 1 . . . . . . . . . . . . . Alert | -11 -10 -9 -8 -7 -7 -7 -6 -6 -6 -6 -5 -5 -4 -3 -3 ------- Run | Yrd Mat Mat Mat Fac Low Dat Pro Fac Ext Cet Fac DSF Fac Res Tes Maximum Alert Level 2 | . . . . 2 . . . 1 . 1 . 1 . 1 . Low Security (%) 87 | 100 100 100 100 56 . . . 90 100 89 100 21 100 94 100 Level 1 9 | . . . . 23 . . . 9 . 10 . 78 . 5 . Level 2 3 | . . . . 19 . . . . . . . . . . . Level 3 . | . . . . . . . . . . . . . . . . Level 4 . | . . . . . . . . . . . . . . . . Level 5 . | . . . . . . . . . . . . . . . . High Security . | . . . . . . . . . . . . . . . . Max Security . | . . . . . . . . . . . . . . . . Sterilizations 1 | . . . . . . . . . . . . 1 . . . Peak Influence 492 | 10 50 103 54 492 . . . 226 152 210 84 267 134 255 184 Initial 139 | . . 14 24 . . . . . 105 76 84 37 130 . 139 Average 78 | 1 3 57 13 184 . . . 59 58 141 70 222 53 29 146 Influence Increases 4616 | 25 57 479 104 1071 . . 70 506 774 294 . 252 209 695 80 Destroy 0b10 Robot/C 2580 | . 20 280 40 540 . . 60 280 500 160 . 120 120 460 . Destroy 0b10 Robot/NC 160 | 25 5 25 10 40 . . . 15 20 10 . . . 10 . Destroy Leader 512 | . 12 94 4 126 . . 10 94 60 . . . 30 82 . Allied During Kill 378 | . . . . . . . . . 123 116 . 120 19 . . Successful Hack 159 | . 5 16 3 33 . . . 48 5 . . . 28 16 5 Disable Machine 300 | . 15 . . 225 . . . 15 30 . . . . . 15 Destroy Structure 152 | . . 4 2 77 . . . 9 6 8 . 12 12 22 . Lose Combat Pursuer 375 | . . 60 45 30 . . . 45 30 . . . . 105 60 Influence Decreases 4457 | 25 23 454 163 591 268 212 70 291 853 278 98 57 458 447 169 Entered New Map 928 | . . 20 35 . 178 212 . . 110 60 68 17 119 . 109 Time Decay 2657 | 25 23 404 118 451 90 . 60 211 501 198 30 . 259 227 60 Lost Part 590 | . . 30 10 140 . . 10 80 80 20 . . . 220 . Lost Ally 282 | . . . . . . . . . 162 . . 40 80 . . Squads Dispatched 41 | . 2 5 2 11 . . . 7 4 . . . 2 7 1 Investigation 12 | . 2 3 . 2 . . . 1 2 . . . . 2 . Extermination 10 | . . . . 3 . . . 5 . . . . 1 . 1 Reinforcement 16 | . . 2 2 3 . . . 1 2 . . . 1 5 . Assault 3 | . . . . 3 . . . . . . . . . . . Garrison . | . . . . . . . . . . . . . . . . Intercept . | . . . . . . . . . . . . . . . . Searches Triggered . | . . . . . . . . . . . . . . . . Data Miner Redirects 2 | . . . . . . . . . 2 . . . . . . Construction Impeded 3 | . . . 1 1 . . . . 1 . . . . . . Haulers Reinforced 1 | . . . . . . . . . . . . . . 1 . Active Scanning Responses . | . . . . . . . . . . . . . . . . Cargo Convoy Interrupts 1 | . . . . 1 . . . . . . . . . . . Stealth | -11 -10 -9 -8 -7 -7 -7 -6 -6 -6 -6 -5 -5 -4 -3 -3 --------- Run | Yrd Mat Mat Mat Fac Low Dat Pro Fac Ext Cet Fac DSF Fac Res Tes Distress Signals 27 | . . 3 3 3 . . . 2 1 2 . . . 12 1 Communications Jammed 2 | . . . . . . . . . . . . . . 2 . Distress Signals 2 | . . . . . . . . . . . . . . 2 . Times Spotted 241 | . 3 27 23 53 . . 3 21 28 10 . 8 7 47 11 Peak Tracking Total 13 | . 2 4 6 13 . . 3 5 6 5 . 6 2 7 9 Tactical Retreats 15 | . . 3 1 2 . . . 1 2 . . . . 5 1 Traps | -11 -10 -9 -8 -7 -7 -7 -6 -6 -6 -6 -5 -5 -4 -3 -3 ------- Run | Yrd Mat Mat Mat Fac Low Dat Pro Fac Ext Cet Fac DSF Fac Res Tes Traps Triggered 11 | . 4 1 . 2 . . . . 1 . . . . 3 . Indirectly . | . . . . . . . . . . . . . . . . Trap Hack Attempts . | . . . . . . . . . . . . . . . . Triggered . | . . . . . . . . . . . . . . . . Disarmed . | . . . . . . . . . . . . . . . . Reprogrammed . | . . . . . . . . . . . . . . . . Reused . | . . . . . . . . . . . . . . . . Traps Extracted . | . . . . . . . . . . . . . . . . Installed . | . . . . . . . . . . . . . . . . Triggered . | . . . . . . . . . . . . . . . . Machines | -11 -10 -9 -8 -7 -7 -7 -6 -6 -6 -6 -5 -5 -4 -3 -3 ---------- Run | Yrd Mat Mat Mat Fac Low Dat Pro Fac Ext Cet Fac DSF Fac Res Tes Machines Disabled 20 | . 1 . . 15 . . . 1 2 . . . . . 1 Max in Single Turn 3 | . 1 . . 3 . . . 1 1 . . . . . 1 Garrison Access 5 | . . . 1 2 . . . 1 . . . . . 1 . Machines Repaired . | . . . . . . . . . . . . . . . . Machines Dismantled . | . . . . . . . . . . . . . . . . Machines Sabotaged . | . . . . . . . . . . . . . . . . Overloaded Fab Kills . | . . . . . . . . . . . . . . . . Hacking | -11 -10 -9 -8 -7 -7 -7 -6 -6 -6 -6 -5 -5 -4 -3 -3 --------- Run | Yrd Mat Mat Mat Fac Low Dat Pro Fac Ext Cet Fac DSF Fac Res Tes Machines Accessed 40 | . 3 4 3 6 1 4 . 4 7 . 1 . 3 2 2 Terminals 26 | . 3 4 2 3 . . . 2 6 . 1 . 2 1 2 Fabricators 3 | . . . . 2 . . . . . . . . 1 . . Repair Stations 1 | . . . . . . . . . 1 . . . . . . Recycling Units . | . . . . . . . . . . . . . . . . Scanalyzers 1 | . . . . . . . . 1 . . . . . . . Garrison Access 4 | . . . 1 1 . . . 1 . . . . . 1 . Total Hacks 122 | . 5 11 6 14 1 32 . 19 15 . 1 . 6 6 6 Successful 85 | . 2 8 4 9 1 32 . 15 5 . 1 . 4 2 2 Failed 37 | . 3 3 2 5 . . . 4 10 . . . 2 4 4 Catastrophic 10 | . 1 2 . . . . . 1 3 . . . . 1 2 Database Lockouts . | . . . . . . . . . . . . . . . . Manual 31 | . 4 7 4 4 . . . 1 4 1 . . 3 1 2 Terminals 61 | . 5 11 5 9 . . . 4 12 . 1 . 5 3 6 Fabricators 4 | . . . . 3 . . . . . . . . 1 . . Repair Stations 3 | . . . . . . . . . 3 . . . . . . Recycling Units . | . . . . . . . . . . . . . . . . Scanalyzers 13 | . . . . . . . . 13 . . . . . . . Garrison Access 8 | . . . 1 2 . . . 2 . . . . . 3 . Terminal Hacks 52 | . 1 5 1 4 1 32 . 2 2 . 1 . 1 1 1 Record 14 | . . . 1 . . 11 . . 1 . . . . 1 . Part Schematic 15 | . . . . 2 . 13 . . . . . . . . . Robot Schematic 5 | . . . . . . 5 . . . . . . . . . Prototype ID Bank 3 | . . . . . . 3 . . . . . . . . . Open Door 1 | . . . . . 1 . . . . . . . . . . Open DSF 1 | . . . . . . . . . . . 1 . . . . Branch Access Points 3 | . . . . 1 . . . 1 . . . . . . 1 Alert Level 1 | . . 1 . . . . . . . . . . . . . Recall Investigation 1 | . . . . 1 . . . . . . . . . . . Recall Reinforcements 1 | . . 1 . . . . . . . . . . . . . Hauler Manifests 2 | . . 2 . . . . . . . . . . . . . Registered Components 2 | . . . . . . . . 1 . . . . 1 . . Zone Layout 3 | . 1 1 . . . . . . 1 . . . . . . Fabricator Hacks 4 | . . . . 3 . . . . . . . . 1 . . Network Status 2 | . . . . 1 . . . . . . . . 1 . . Load Schematic 1 | . . . . 1 . . . . . . . . . . . Build 1 | . . . . 1 . . . . . . . . . . . Repair Station Hacks 2 | . . . . . . . . . 2 . . . . . . Scan Component 1 | . . . . . . . . . 1 . . . . . . Repair 1 | . . . . . . . . . 1 . . . . . . Recycling Unit Hacks . | . . . . . . . . . . . . . . . . Scanalyzer 11 | . . . . . . . . 11 . . . . . . . Insert Component 4 | . . . . . . . . 4 . . . . . . . Analyze 7 | . . . . . . . . 7 . . . . . . . Garrison Access Hacks 4 | . . . 1 1 . . . 1 . . . . . 1 . Seal Access 4 | . . . 1 1 . . . 1 . . . . . 1 . Unauthorized Hacks 12 | . 1 3 2 1 . . . 1 1 . . . 2 . 1 Terminals 12 | . 1 3 2 1 . . . 1 1 . . . 2 . 1 Botnet 12 | . 1 3 2 1 . . . 1 1 . . . 2 . 1 Fabricators . | . . . . . . . . . . . . . . . . Repair Stations . | . . . . . . . . . . . . . . . . Recycling Units . | . . . . . . . . . . . . . . . . Scanalyzers . | . . . . . . . . . . . . . . . . Garrison Access . | . . . . . . . . . . . . . . . . Data Cores Recovered 1 | . . 1 . . . . . . . . . . . . . Used 1 | . . 1 . . . . . . . . . . . . . Hacking Detections 29 | . 2 4 1 4 . . . 4 7 . 1 . 2 2 2 Full Trace Events 7 | . 1 2 . 2 . . . 1 1 . . . . . . Feedback Events . | . . . . . . . . . . . . . . . . Feedback Blocked . | . . . . . . . . . . . . . . . . Robot Schematics Acquired 5 | . . . . . . 5 . . . . . . . . . Robots Built . | . . . . . . . . . . . . . . . . Authchips . | . . . . . . . . . . . . . . . . Time . | . . . . . . . . . . . . . . . . Total Robot Build Rating . | . . . . . . . . . . . . . . . . Part Schematics Acquired 19 | . . . . 2 . 13 . 4 . . . . . . . Parts Built 1 | . . . . 1 . . . . . . . . . . . Authchips . | . . . . . . . . . . . . . . . . Time 42 | . . . . 42 . . . . . . . . . . . Total Part Build Rating 4 | . . . . 4 . . . . . . . . . . . Parts Repaired 1 | . . . . . . . . . 1 . . . . . . Time 89 | . . . . . . . . . 89 . . . . . . Parts Recycled . | . . . . . . . . . . . . . . . . Recycled Matter . | . . . . . . . . . . . . . . . . Retrieved Matter . | . . . . . . . . . . . . . . . . Retrieved Components . | . . . . . . . . . . . . . . . . Parts Scanalyzed 4 | . . . . . . . . 4 . . . . . . . Part Schematics Acquired 4 | . . . . . . . . 4 . . . . . . . Parts Damaged 1 | . . . . . . . . 1 . . . . . . . Bothacking | -11 -10 -9 -8 -7 -7 -7 -6 -6 -6 -6 -5 -5 -4 -3 -3 ------------ Run | Yrd Mat Mat Mat Fac Low Dat Pro Fac Ext Cet Fac DSF Fac Res Tes Used RIF Installer . | . . . . . . . . . . . . . . . . Robots Hacked 3 | . . . . . . 1 . . . . . . . 2 . Non-combat . | . . . . . . . . . . . . . . . . Combat 3 | . . . . . . 1 . . . . . . . 2 . Robot Hacks Applied 3 | . . . . . . 1 . . . . . . . 2 . parse_system 3 | . . . . . . 1 . . . . . . . 2 . Relay Couplers Released 3 | . . . . . . . . 3 . . . . . . . Programmers 3 | . . . . . . . . 3 . . . . . . . Fabnet Peak Effective % . | . . . . . . . . . . . . . . . . Robots Rewired 11 | . . . . . . . . . 11 . . . . . . Allies Hacked . | . . . . . . . . . . . . . . . . Hacks Repelled . | . . . . . . . . . . . . . . . . Allies | -11 -10 -9 -8 -7 -7 -7 -6 -6 -6 -6 -5 -5 -4 -3 -3 -------- Run | Yrd Mat Mat Mat Fac Low Dat Pro Fac Ext Cet Fac DSF Fac Res Tes Total Allies 25 | . . . . . . . . . 20 5 . . . . . Largest Group 10 | . . . . . . . . . 7 10 10 9 5 . . Highest-Rated Group 750 | . . . . . . . . . 350 750 750 591 355 . . Highest-Rated Ally 159 | . . . . . . . . . 159 159 159 96 96 . . Initial Warlord ECA Mod 25 | . . . . . . . . . . . . . 9 8 8 Total Orders . | . . . . . . . . . . . . . . . . Ally Attacks 210 | . . . . . . . . . 97 58 . 35 20 . . Total Damage 5048 | . . . . . . . . . 2155 1302 . 990 601 . . Kills 31 | . . . . . . . . . 15 8 . 6 2 . . Allies Corrupted . | . . . . . . . . . . . . . . . . Allies Melted . | . . . . . . . . . . . . . . . . Intel | -11 -10 -9 -8 -7 -7 -7 -6 -6 -6 -6 -5 -5 -4 -3 -3 ------- Run | Yrd Mat Mat Mat Fac Low Dat Pro Fac Ext Cet Fac DSF Fac Res Tes Active Infowar (turns) 9816 | 23 476 790 341 1835 198 99 287 3057 677 . . . 121 1912 . Optics 195 | . . . . . . . . . . . . . . 195 . Sensors 6795 | . . . . 1124 198 99 287 3057 676 . . . . 1354 . Terrain 729 | . . . 20 709 . . . . . . . . . . . Seismic 2439 | 23 476 790 341 368 . . . . . . . . . 441 . Jamming 1596 | . . . . . . . . . . . . . 121 1475 . ECM 1 | . . . . . . . . . 1 . . . . . . Robot Analysis Total . | . . . . . . . . . . . . . . . . Derelict Logs Recovered . | . . . . . . . . . . . . . . . . Drone Launches . | . . . . . . . . . . . . . . . . Drone Recoveries . | . . . . . . . . . . . . . . . . Exploration | -11 -10 -9 -8 -7 -7 -7 -6 -6 -6 -6 -5 -5 -4 -3 -3 ------------- Run | Yrd Mat Mat Mat Fac Low Dat Pro Fac Ext Cet Fac DSF Fac Res Tes Turns Passed 12646 | 163 476 969 341 2309 198 99 287 3117 1382 400 71 115 661 1929 129 Spaces Moved 6002 | 77 211 446 353 1065 170 82 228 879 713 170 30 61 332 919 266 Core 19 | 9 . . . . . . . 1 . . . . . 9 . Treads 3153 | 68 211 356 12 1015 . . . 38 . 144 30 61 332 886 . Legs 915 | . . . . . . . . 176 713 26 . . . . . Wheels 1194 | . . . . 50 170 82 228 664 . . . . . . . Hover 431 | . . 90 341 . . . . . . . . . . . . Flight 290 | . . . . . . . . . . . . . . 24 266 Fastest Speed 35 | 50 160 52 48 115 115 115 115 115 120 120 160 160 160 39 35 Average Speed 133 | 147 160 138 54 161 115 115 115 129 120 153 160 160 160 155 43 Slowest Speed 950 | 160 160 180 250 225 115 115 115 950 122 160 160 160 160 160 50 Overloaded Moves . | . . . . . . . . . . . . . . . . Propulsion Burnouts . | . . . . . . . . . . . . . . . . Robots Hopped 1 | . . . . . . . . . . . . . . . 1 Potential Cave-ins 2 | . . . . . . . . . . . . . . 2 . Cave-ins Triggered 1 | . . . . . . . . . 1 . . . . . . Exploration Rate (%) 35 | 5 48 36 30 29 34 69 49 17 75 56 1 54 7 25 31 Regions Visited 15 Branch Regions 6 Pre-discovered Areas 1 | . . . . . . 1 . . . . . . . . . Known Exits Taken 9 | . . . . 1 1 1 1 1 1 1 1 . 1 . . Unknown Exits Taken 5 | 1 1 1 1 . . . . . . . . . . 1 . Scrap Searched 1 | . . . . . 1 . . . . . . . . . . Spaces Dug 15 | . . . . 3 . . . 9 3 . . . . . . Terrain Destroyed 112 | 2 . 2 . 82 . . . 9 5 . . . . 12 . Melee 15 | . . . . 3 . . . 9 3 . . . . . . Projectile 14 | . . . . . . . . . 2 . . . . 12 . AOE 83 | 2 . 2 . 79 . . . . . . . . . . . Terrain Rammed . | . . . . . . . . . . . . . . . . Walls Destroyed . | . . . . . . . . . . . . . . . . Machines Disabled . | . . . . . . . . . . . . . . . . Actions | -11 -10 -9 -8 -7 -7 -7 -6 -6 -6 -6 -5 -5 -4 -3 -3 --------- Run | Yrd Mat Mat Mat Fac Low Dat Pro Fac Ext Cet Fac DSF Fac Res Tes Total 9759 | 107 338 666 465 1480 172 87 240 2760 1135 295 53 78 401 1207 275 Wait 2592 | . 112 96 67 226 . . . 1738 204 43 19 14 10 63 . Move 5985 | 76 210 445 352 1064 169 81 227 878 712 169 29 60 331 918 264 Hop 1 | . . . . . . . . . . . . . . . 1 Pick Up 187 | 14 4 13 8 28 . . . 25 32 25 1 1 10 23 3 Fast Attach 34 | . 3 8 4 4 . . . 1 3 2 . . 1 7 1 Attach 101 | 7 . 4 2 18 . 1 1 14 15 10 2 . 4 20 3 Detach 6 | . . 1 . 2 . 2 . . . . . . 1 . . Swap 76 | . . 2 2 17 1 . . 7 17 7 1 2 5 15 . Drop 141 | . 3 16 10 15 . 1 . 12 27 27 1 1 7 20 1 Fire 500 | 10 6 80 20 100 . 2 12 53 58 12 . . 32 114 1 Melee 84 | . . . . 4 . . . 32 20 . . . . 27 1 Ram . | . . . . . . . . . . . . . . . . Kick . | . . . . . . . . . . . . . . . . Crush 3 | . . 1 . 2 . . . . . . . . . . . Escape Stasis . | . . . . . . . . . . . . . . . . Rewire 49 | . . . . . 2 . . . 47 . . . . . . Trap . | . . . . . . . . . . . . . . . . Miscellaneous . | . . . . . . . . . . . . . . . . Route ------- -11/Scrapyard -10/Materials (discovered 2 exits: *Mat / [*Min]) -9/Materials -8/Materials -7/Factory (discovered 4 exits: Sto x2 / *Low x2) -7/Lower Caves -7/Data Miner -6/Proximity Caves -6/Factory (discovered 5 exits: *Fac / Low x2 / *Ext x2) -6/Extension (discovered 2 exits: *Fac / *Cet) -6/Cetus (discovered 2 exits: *Fac / [*Arc]) -5/Factory -5/DSF -4/Factory -3/Research -3/Testing History --------- Turn | Location | Event 20 | -11/Scrapyard | Discovered new exit (range 15) 164 | -11/Scrapyard | Entered Materials 316 | -10/Materials | Build established: Mutant 466 | -10/Materials | Discovered new exit (range 7) 612 | -10/Materials | Discovered new exit (range 9) 640 | -10/Materials | Entered another Materials area 640 | -9/Materials | Evolved 2 slots: Propulsion x1, Utility x1 1603 | -9/Materials | Discovered new exit (range 14) 1609 | -9/Materials | Entered another Materials area 1609 | -8/Materials | Evolved 2 slots: Propulsion x1, Utility x1 1689 | -8/Materials | Met 7R-MNS 1905 | -8/Materials | Attacked by 7R-MNS 1920 | -8/Materials | Discovered new exit (range 5) 1950 | -8/Materials | Entered Factory 1950 | -7/Factory | Evolved 2 slots: Utility x2 2620 | -7/Factory | Fabricated Lgt. Armored Exoskeleton? 3606 | -7/Factory | Identified exit to Storage 3606 | -7/Factory | Identified exit to Lower Caves 3766 | -7/Factory | Cargo convoy interrupted 3867 | -7/Factory | Lost 10 parts (2p4n2u2w) 3950 | -7/Factory | First assault squad dispatched 4062 | -7/Factory | Core integrity fell below 50% 4088 | -7/Factory | Found Prototype Hackware 4089 | -7/Factory | Identified Exp. Hacking Suite 4259 | -7/Factory | Entered Lower Caves 4356 | -7/Lower Caves | Build established: Hacker-Mutant 4454 | -7/Lower Caves | A Derelict revealed a hidden shortcut to meet someone special 4456 | -7/Lower Caves | Identified exit to Data Miner 4457 | -7/Lower Caves | Entered Data Miner 4459 | -7/Data Miner | Discovered new exit (range 6) 4480 | -7/Data Miner | Met Data Miner 4502 | -7/Data Miner | Learned location of Section 7 (-2) 4502 | -7/Data Miner | Acquired the access code to Warlord's prototype stash 4523 | -7/Data Miner | Received God Mode back door access code from Data Miner 4555 | -7/Data Miner | Identified exit to Proximity Caves 4556 | -7/Data Miner | Entered Proximity Caves 4823 | -6/Proximity Caves | Discovered new exit (range 14) 4841 | -6/Proximity Caves | Identified exit to Factory 4843 | -6/Proximity Caves | Entered Factory 4843 | -6/Factory | Evolved 2 slots: Propulsion x1, Utility x1 6482 | -6/Factory | Discovered new exit (range 11) 6507 | -6/Factory | Identified exit to Factory 6738 | -6/Factory | Spotted B-75 Beast 7678 | -6/Factory | Lost 7 parts (3n3u1w) 7708 | -6/Factory | Identified exit to Lower Caves 7708 | -6/Factory | Identified exit to Extension 7937 | -6/Factory | System corruption reached 10% 7960 | -6/Factory | Entered Extension 7977 | -6/Extension | Build established: Scavenger-Mutant 8108 | -6/Extension | Rescued a captive Derelict 8113 | -6/Extension | Rescued a captive Derelict 8188 | -6/Extension | Rescued a captive Derelict 8189 | -6/Extension | Rescued a captive Derelict 8240 | -6/Extension | Incoming investigation squad redirected 8283 | -6/Extension | Lost 3 allies 8331 | -6/Extension | Rescued a captive Derelict 8333 | -6/Extension | Rescued a captive Derelict 8413 | -6/Extension | Lost 3 allies 8616 | -6/Extension | Spotted B-75 Beast 8633 | -6/Extension | Spotted B-75 Beast 8649 | -6/Extension | Crushed by falling debris 8663 | -6/Extension | Allies destroyed B-75 Beast 8680 | -6/Extension | Lost 5 parts (1n2u2w) 8696 | -6/Extension | Destroyed B-75 Beast 8716 | -6/Extension | Lost 7 allies 8881 | -6/Extension | Repaired Fusion Reactor 9167 | -6/Extension | Rescued a captive Derelict 9177 | -6/Extension | Rescued a captive Derelict 9251 | -6/Extension | Rescued A7 9255 | -6/Extension | Incoming investigation squad redirected 9296 | -6/Extension | Discovered exit to Factory (range 10) 9297 | -6/Extension | Discovered new exit (range 6) 9333 | -6/Extension | Identified exit to Cetus 9342 | -6/Extension | Entered Cetus 9342 | -6/Cetus | Accompanied by 6 allies (A7) 9347 | -6/Cetus | Acquired a Cetus Manufacturing Module code from A7 9358 | -6/Cetus | Spotted Cetus Guard 9358 | -6/Cetus | Spotted Cetus Guard 9361 | -6/Cetus | Spotted Cetus Guard 9361 | -6/Cetus | Spotted Cetus Guard 9373 | -6/Cetus | Allies destroyed Cetus Guard 9375 | -6/Cetus | Destroyed Cetus Guard 9376 | -6/Cetus | Core integrity fell below 50% 9376 | -6/Cetus | Allies destroyed Cetus Guard 9387 | -6/Cetus | Allies destroyed Cetus Guard 9446 | -6/Cetus | System corruption reached 30% 9551 | -6/Cetus | Started Cetus Manufacturing Module 9570 | -6/Cetus | Discovered new exit (range 15) 9576 | -6/Cetus | Manufactured an Enhanced Grunt 9597 | -6/Cetus | Spotted Cetus Guard 9598 | -6/Cetus | Spotted Cetus Guard 9601 | -6/Cetus | Manufactured an Enhanced Grunt 9601 | -6/Cetus | Spotted Cetus Guard 9601 | -6/Cetus | Spotted Cetus Guard 9611 | -6/Cetus | Allies destroyed Cetus Guard 9612 | -6/Cetus | Allies destroyed Cetus Guard 9614 | -6/Cetus | Destroyed Cetus Guard 9620 | -6/Cetus | Allies destroyed Cetus Guard 9626 | -6/Cetus | Manufactured an Enhanced Grunt 9627 | -6/Cetus | Discovered exit to Factory (range 15) 9635 | -6/Cetus | Met Revision 17 9651 | -6/Cetus | Manufactured an Enhanced Grunt 9676 | -6/Cetus | Manufactured an Enhanced Grunt 9742 | -6/Cetus | Entered Factory 9742 | -5/Factory | Accompanied by 10 allies (A7) 9742 | -5/Factory | Evolved 2 slots: Propulsion x1, Utility x1 9794 | -5/Factory | Identified exit to DSF 9813 | -5/Factory | Entered DSF 9813 | -5/DSF | Encountered a pitched battle between 0b10 and Warlord forces 9813 | -5/DSF | Accompanied by 9 allies 9844 | -5/DSF | Discovered new exit (range 15) 9848 | -5/DSF | Sterilization system engaged 9868 | -5/DSF | Ambient heat levels rising (+10) 9871 | -5/DSF | Identified exit to Factory 9883 | -5/DSF | Ambient heat levels rising (+10) 9896 | -5/DSF | Lost 16 allies 9898 | -5/DSF | Ambient heat levels rising (+10) 9913 | -5/DSF | Ambient heat levels rising (+10) 9928 | -5/DSF | Ambient heat levels rising (+10) 9928 | -5/DSF | Entered Factory 9928 | -4/Factory | Accompanied by 5 allies 9928 | -4/Factory | Evolved 2 slots: Power x1, Utility x1 9990 | -4/Factory | Lost 5 allies 10322 | -4/Factory | Discovered new exit (range 7) 10330 | -4/Factory | Identified exit to Research 10589 | -4/Factory | Entered Research 10589 | -3/Research | Evolved 2 slots: Utility x1, Weapon x1 10685 | -3/Research | Found Prototype Device 10685 | -3/Research | Identified Exp. EM Disruption Field 10789 | -3/Research | Revision forces began assault on 0b10 10832 | -3/Research | Met up with Revision 17++ 10901 | -3/Research | Build established: Scavenger-Tank 11289 | -3/Research | Research terminal network offline 11708 | -3/Research | Found Adv. Powered Armor 11777 | -3/Research | Found Gamma Bomb Array 12064 | -3/Research | Spotted Striker 12106 | -3/Research | Destroyed Striker 12181 | -3/Research | Spotted Striker 12215 | -3/Research | Spotted Executioner 12217 | -3/Research | Spotted Striker 12238 | -3/Research | Destroyed Executioner 12250 | -3/Research | Destroyed Striker 12279 | -3/Research | Destroyed Striker 12287 | -3/Research | Found Prototype Processor 12288 | -3/Research | Identified Exp. Core Analyzer 12292 | -3/Research | Found Prototype Processor 12293 | -3/Research | Identified Exp. Targeting Computer 12302 | -3/Research | Lost 3 parts (1p1u1w) 12413 | -3/Research | Spotted Executioner 12414 | -3/Research | Spotted Striker 12429 | -3/Research | Destroyed Executioner 12446 | -3/Research | Core integrity fell below 50% 12456 | -3/Research | Spotted Striker 12460 | -3/Research | Spotted Executioner 12465 | -3/Research | Destroyed Striker 12475 | -3/Research | Spotted Striker 12486 | -3/Research | Spotted Striker 12486 | -3/Research | Spotted Striker 12497 | -3/Research | Core integrity fell below 20% 12498 | -3/Research | Destroyed Striker 12501 | -3/Research | Released all parts (11) 12514 | -3/Research | Discovered new exit (range 10) 12518 | -3/Research | Entered Testing 12521 | -3/Testing | Lost 15 parts (3p3n6u3w) 12590 | -3/Testing | Found Prototype Energy Gun 12591 | -3/Testing | Identified Hyp. EM Gauss Rifle 12639 | -3/Testing | Spotted Striker 12641 | -3/Testing | Spotted Striker 12646 | -3/Testing | Spotted Alpha 7 12647 | -3/Testing | Destroyed by Striker with Compact Linear Accelerator Last Messages --------------- Chamber. 12611_ ALERT: Potential suspicious activity detected, Programmers report to Testing Zone 4T. 12614_ Acquired Q-thruster. 12619_ Acquired Prototype Flight Unit. 12619_ Identified Cld. Field Propulsion Drive. 12621_ Connecting with Terminal... >>Trojan(Botnet) Trojan loaded successfully. Testing... Terminal linked with 0 systems. Awaiting botnet instructions. 12637_ P-80 Master resets R-10 Processor, system corruption cleaned. 12644_ Knocked back. 12645_ Dropped Hds. Centrium Wheel. 12646_ Knocked back. 12646_ Acquired 2 matter. 12647_ Cld. Field Propulsion Drive blasted off. Map ----- +----------------------------------------------------+ | ???????????????????????????# #?????? | | ???????????????????????????# #?????? | | ???????????????????????????# #?????? | | ???????????????????????????# #?????? | | ???????????????????????????# #?????? | | ?????????????????????#######+##????? | | ?????????????????????# #????? | | ?????????????????????# """ #????? | | ?????????????????????# ! """ #????? | | ?????????????????????# """ #????? | | ?????????????????????# #????? | | ?????###?????????????# """ #????? | | ?????" "#?############ """ #????? | | ???##"" ### + """ #???## | | ???# # # #???#T | | ???#" " # #######+###### | | ???#" " " + | | ???#"""""## | | ???#########################+####### | | ???????????????????#! # ] | | ???????????????????# # " | | ??????########?????# = ! !#! " | | ??????#""""""#?????# # | | ??????#""&"""#?????# """ """ # " | | ??????#"" ""####??# """S""" #?[ | | ??????#"" %@ ## ###################+ | | ??????#"" /K | | ??????#" 7/ K= | | ??????#"c ## #####+#############+ | | ??????#""" ####?? ?????????? | | ??????##### #????#= """????????"" | | ??????????####????# """ #????? "" | | ??????????????????# """ #????? "" | | ??????????????????# #????# "" | | ??????????????????# ?????# | | ??????????????????# "" """ ?????##?? | | ??????????????????# ""F""" #???????? | | ??????????????????# """"??????????? | | ??????????????????######???????????? | | ???????????????????????????????????? | | ???????????????????????????????????? | | ???????????????????????????????????? | | | | | | | | | | | | | | | | | +----------------------------------------------------+ Best States ------------- Heat Dissipation 77 Energy Generation 49 Energy Capacity 770 Matter Stores 300 Matter Capacity 300 Sight Range 23 Robot Scan Range 16 Terrain Scan Range 16 Terrain Scan Density 110 Jamming Range 16 Armor Coverage 825 Resistance: TH 25 Phase Shifting 10 Evasion (%) 62 Targeting Accuracy 12 Melee Accuracy 5 Target Analysis 6 Core Analysis 8 Recoil Reduction 6 Salvage Targeting 2 Offensive Hacking 26 Item Schematics ----------------- Lgt. Armored Exoskeleton | -7/Factory | Hacked Imp. System Shield | -7/Factory | Hacked Combat Drone Bay | -7/Data Miner | Free Lgt. Regenerative Plating | -7/Data Miner | Free Cld. Cesium-ion Thruster | -7/Data Miner | Free Exp. Propulsion Shielding | -7/Data Miner | Free Antimatter Cannon | -7/Data Miner | Free Antigrav System | -7/Data Miner | Free Imp. Component Analysis Suite | -7/Data Miner | Free Variable Charge Gun | -7/Data Miner | Free Imp. Particle Charger | -7/Data Miner | Free Lrn. Proton Cannon | -7/Data Miner | Free Disruptor Cannon | -7/Data Miner | Free Adv. Particle Charger | -7/Data Miner | Free Adv. Thermal Generator | -7/Data Miner | Free Enh. Force Rifle | -6/Factory | Scanalyzed Fusion Reactor | -6/Factory | Scanalyzed Cld. Plasma Rifle | -6/Factory | Scanalyzed Remote Datajack | -6/Factory | Scanalyzed Robot Schematics ------------------ G-47 Trooper | -7/Data Miner | Free S-27 Virus | -7/Data Miner | Free Y-54 Guardian | -7/Data Miner | Free Y-64 Sentinel | -7/Data Miner | Free L-41 Fighter | -7/Data Miner | Free Fabricated ------------ Lgt. Armored Exoskeleton | x1 | -7/Factory Repaired ---------- Fusion Reactor | 37% | -6/Extension Alien Tech Used ----------------- None Achievements -------------- None Challenges ------------ None Game ------ Seed GaussDisintegrationProjector Manual? 0 Play Time 02:07:43 Cumulative 136.9 hours Start 2025.08.13 @ 05:02:37 End 2025.08.13 @ 07:51:24 Sessions 5 Manual Loads 0 Difficulty Rogue Special Mode None Game No. 236 Rogue 236 Adventurer 0 Explorer 0 Win Type - Total 2 Types 1/0/1/0/0/0/0/0/0/0 Lore% 74 Gallery% 70 Achievement% 49 Wizard Run 0 Options --------- Layout 1 ASCII 0 Keyboard 0 Movement Mouse Keybinds 0 Fullscreen 1 Font 24/Smallcaps Map View 50x40 Zoom Use 0% Tactical HUD 1 Map Filters NONE Filters NONE Steam 1 RUN: 933ea374-bae1-4135-9615-2915743a114a